[Event "Rapid Shavuot-A 2023"]
[Site "Ramat Gan"]
[Date "2023.05.25"]
[Round "2.5"]
[White "Bodenshtein, Yair"]
[Black "Levin, Guy"]
[Result "0-1"]
[ECO "B15"]
[WhiteElo "1846"]
[BlackElo "2424"]
[Annotator "TA"]
[PlyCount "66"]
[EventDate "2023.05.19"]
[EventType "swiss"]
[EventCountry "ISR"]
[SourceTitle "playchess.com"]
[Source "ChessBase"]
[SourceQuality "1"]
[TimeControl "900+5"]

{[%evp 16,66,35,29,37,12,37,38,26,47,52,41,55,55,63,64,73,22,18,0,-3,-25,16,-29,-29,-102,-103,-80,-89,-82,-38,-33,-37,-67,-66,-77,-54,-139,-149,-142,-143,-206,-45,-193,0,-579,-545,-550,-265,-825,0,-760,-750]} 1. e4 {[%emt 0:00:01]} c6 {[%emt 0:00:01]} 2. d4 {[%emt 0:00:02]} d5 {[%emt 0:00:01]} 3. Nd2 {[%emt 0:00:01]} dxe4 4. Nxe4 {[%emt 0:00:01]} Nf6 {[%emt 0:00:02]} 5. Nxf6+ exf6 {[%emt 0:00:01]} 6. c3 {[%emt 0:00:02]} Bd6 {[%emt 0:00:01]} 7. Bd3 {[%emt 0:00:02]} O-O {[%emt 0:00:04]} 8. Qc2 {[%emt 0:00:02]} Re8+ {[%emt 0:00:10]} 9. Be3 {[%emt 0:00:01]} h5 {[%emt 0:00:11] B15: Caro-Kann: 3 Nc3: 3...g6 and 3...dxe4 4 Nxe4 Nf6 5 Nxf6+ exf6.} 10. O-O-O {[%emt 0:00:04]} Qc7 {[%emt 0:00:38]} 11. Ne2 {[%emt 0:00:25]} Be6 {[%emt 0:00:27] White is slightly better.} 12. c4 {[%emt 0:00:03][%cal Bc3c4,Bc4c5][%mdl 32] [#]} Na6 $146 {[%emt 0:00:43][%cal Oa6b4] And now ...Nb4! would win.} ({Predecessor:} 12... c5 13. Kb1 Nd7 14. Ng3 cxd4 15. Bxd4 Ne5 16. Be2 Rac8 17. b3 b5 18. c5 Bxc5 {1-0 Sukandar,I (2392)-Fronda Pascua,J (2141) SEA Games (Women) 31st 2022 (2)}) 13. a3 {[%emt 0:00:28] Repels Nb4} b5 {[%emt 0:00:51]} 14. c5 {[%emt 0:01:00]} (14. cxb5 cxb5 15. d5 Bd7 $11) 14... Bf8 {[%emt 0:00:18]} 15. Nf4 {[%emt 0:01:08]} g6 {[%emt 0:01:07]} 16. Rhe1 {[%emt 0:01:18]} (16. h3 $16) 16... Bg4 $11 {[%emt 0:00:18]} 17. Ne2 {[%emt 0:02:44]} (17. Be2 $5) 17... Qd7 {[%emt 0:00:52]} (17... Qxh2 $2 18. Bxg6 Rxe3 19. Bh7+ (19. fxe3 fxg6 20. Qxg6+ Bg7 $14) 19... Kh8 20. fxe3 Qxg2 21. Be4 $18) 18. h3 {[%emt 0:00:18]} (18. d5 {is interesting.} cxd5 19. c6 Qd6 20. Kb1) 18... Bxe2 {[%emt 0:00:14]} 19. Rxe2 {[%emt 0:00:19][%cal Od4d5]} Nc7 {[%emt 0:00:11][%cal Ba6c7,Bc7d5,Bd5e3][%mdl 32]} 20. g4 {[%emt 0:01:35]} hxg4 $17 {[%emt 0:00:27]} 21. hxg4 {[%emt 0:00:02]} Qxg4 {[%emt 0:01:54]} 22. Ree1 {[%emt 0:00:04]} Nd5 {[%emt 0:01:01] Black is more active.} 23. Rg1 $1 {[%emt 0:00:31]} Qh5 {[%emt 0:00:11]} 24. Rh1 {[%emt 0:01:07]} Nxe3 {[%emt 0:02:21]} 25. fxe3 {[%emt 0:00:01]} Qg5 {[%emt 0:00:00]} 26. Rdg1 {[%emt 0:00:35]} (26. Qh2 $2 Bg7 27. Kb1 Qxe3 $19) (26. Kb1 $15 Qxe3 27. d5 (27. Qh2 $2 Bg7 $19)) 26... Qxe3+ {[%emt 0:00:02]} 27. Kb1 {[%emt 0:00:02][%cal Od3g6] Bxg6! would be deadly.} Bg7 {[%emt 0:00:01] Repels Bxg6. White must now prevent ...Rad8.} (27... Qxd4 $2 28. Bxg6 Bg7 29. Bxf7+ Kf8 30. Bxe8 Rxe8 31. Rxg7 $18) 28. Ka1 {[%emt 0:01:49] [#]} (28. d5 $17) 28... f5 $2 {[%emt 0:00:44]} (28... Qxd4 29. Bxg6 fxg6 30. Qxg6 $15) (28... Re7 $1 $19 29. d5 cxd5) 29. Bxf5 $1 $15 {[%emt 0:00:37]} gxf5 {[%emt 0:00:32]} ({Much less strong is} 29... Bxd4 30. Bxg6 Qxg1+ 31. Rxg1 Bxg1 32. Be4 Bxc5 33. Bxc6 Re1+ 34. Ka2 $16) ({Better is} 29... Qxd4 $1 $19 30. Bxg6 fxg6 31. Rxg6 Re7) 30. Qxf5 $4 {[%emt 0:01:33][%mdl 8192]} (30. Qh2 $1 $11 {and White has nothing to worry.} Kf8 31. Qd6+ Re7 32. Qxc6) 30... Qxd4 $19 {[%emt 0:00:04][%csl Gg7][%cal Rd4b2]} ({Not} 30... Kf8 31. Rxg7 $18) 31. Rg2 {[%emt 0:00:35]} Re3 {[%emt 0:00:16]} (31... Kf8 $142 32. Rf1 Re7) 32. Rhg1 $2 {[%emt 0:00:33]} (32. Qh7+ Kf8 33. Rxg7 Rxa3+ 34. Kb1 Qxg7 35. bxa3) 32... Rxa3+ {[%emt 0:00:01]} 33. Kb1 {[%emt 0:00:01] [#]} Rg3 $3 {[%emt 0:00:02] Weighted Error Value: White=0.51/Black=0.73} 0-1

[Event "Rapid Shavuot-A 2023"]
[Site "Ramat Gan"]
[Date "2023.05.25"]
[Round "2.6"]
[White "Mesropov, Konstantin"]
[Black "Gamayev, Oleg"]
[Result "1-0"]
[ECO "D34"]
[WhiteElo "2437"]
[BlackElo "2174"]
[Annotator "TA"]
[PlyCount "76"]
[EventDate "2023.05.19"]
[EventType "swiss"]
[EventCountry "ISR"]
[SourceTitle "playchess.com"]
[Source "ChessBase"]
[SourceQuality "1"]
[TimeControl "900+5"]

{[%evp 17,76,23,39,35,34,30,89,81,81,80,100,93,167,170,168,170,168,122,140,137,210,210,261,251,243,152,175,150,150,155,158,139,169,111,171,178,181,185,183,188,196,195,189,188,1179,1123,1806,1325,1317,1317,1317,1313,1266,843,1076,995,965,948,1208,1108,29985]} 1. c4 {[%emt 0:00:04]} e6 {[%emt 0:00:06]} 2. g3 {[%emt 0:00:05]} d5 {[%emt 0:00:06]} 3. Bg2 {[%emt 0:00:01]} Nf6 {[%emt 0:00:01]} 4. Nf3 {[%emt 0:00:07]} c5 {[%emt 0:00:13]} 5. cxd5 {[%emt 0:00:07]} exd5 {[%emt 0:00:09]} 6. d4 {[%emt 0:00:05]} Nc6 {[%emt 0:01:01]} 7. O-O {[%emt 0:00:06]} Be7 {[%emt 0:00:14]} 8. Nc3 {[%emt 0:00:08]} O-O {[%emt 0:00:23]} 9. Bf4 {[%emt 0:00:29] 9.dxc5 is a critical line.} a6 {[%emt 0:02:00]} 10. Rc1 {[%emt 0:00:22] D34: Tarrasch Defence: 6 g3 Nf6 7 Bg2 Be7.} c4 {[%emt 0:01:36]} 11. Ne5 {[%emt 0:00:03]} Be6 {[%emt 0:00:19] [#]} (11... Re8 $11) 12. Nxc4 $1 $16 {[%emt 0:00:18] White is better.} dxc4 {[%emt 0:01:35]} 13. d5 {[%emt 0:00:01]} Nxd5 {[%emt 0:00:29]} 14. Nxd5 {[%emt 0:00:04]} Bf6 {[%emt 0:00:45]} (14... Qa5 $16 {is a better defense.}) 15. Bc7 $18 {[%emt 0:02:01]} (15. Rxc4 Bxb2 16. e4 Be5 $16) 15... Qc8 {[%emt 0:00:37] aiming for ...Bxd5.} 16. Nxf6+ {[%emt 0:00:03]} (16. Rxc4 $2 {is the wrong capture.} Bxd5 17. Bxd5 Qxc7 $19) 16... gxf6 {[%emt 0:00:02]} 17. Bb6 {[%emt 0:00:06] [#]} (17. Qd6 $18) 17... Re8 $146 {[%emt 0:00:46]} ({Predecessor:} 17... Ne5 18. Qd6 a5 19. Rfd1 Ra6 20. Qc5 Re8 21. Rd2 Qxc5 22. Bxc5 Nd7 23. Be3 b6 {1-0 Vesecky,M (2087)-Lastovka,J (2134) CZE-chT2C 1112 2011 (1.6)}) 18. Qd6 {[%emt 0:01:05] White is more active.} Bh3 {[%emt 0:01:23] Black is weak on the dark squares} (18... a5 $16 {was necessary.} 19. Rfd1 Ra6) 19. Qxf6 $18 {[%emt 0:00:46]} Bxg2 {[%emt 0:00:52] [#]} 20. Qg5+ $1 {[%emt 0:00:05]} ({But not} 20. Kxg2 $6 Qg4 $16) 20... Kh8 {[%emt 0:00:07]} 21. Kxg2 {[%emt 0:00:17]} Qe6 {[%emt 0:00:10]} 22. Be3 {[%emt 0:02:38]} b5 {[%emt 0:01:14] [#]} 23. b3 $1 {[%emt 0:00:12][%mdl 512]} f6 {[%emt 0:00:16]} (23... Ne5 24. Rfd1) 24. Qh4 {[%emt 0:00:47][%cal Rb3c4]} Ne5 {[%emt 0:00:09]} 25. Kg1 {[%emt 0:01:30]} (25. Bd4 $18) 25... Rac8 {[%emt 0:00:09] [#]} (25... Rad8 $16) 26. bxc4 $1 {[%emt 0:00:08]} Rxc4 {[%emt 0:01:47]} 27. Rxc4 {[%emt 0:00:10]} Nxc4 {[%emt 0:00:02]} 28. Bd4 {[%emt 0:00:05]} Kg7 {[%emt 0:00:03]} 29. Rd1 {[%emt 0:00:48][%cal Od4f6]} Re7 {[%emt 0:00:34]} 30. Rd3 {[%emt 0:00:56] Hoping for Qg5+.} Rf7 $2 {[%emt 0:00:15]} (30... Ne5) 31. Qg5+ {[%emt 0:00:27] White is clearly winning.} Kh8 {[%emt 0:00:09] [#]} 32. Bxf6+ $1 {[%emt 0:00:22][%mdl 512]} Qxf6 {[%emt 0:00:05]} 33. Rd8+ {[%emt 0:00:01]} Qxd8 {[%emt 0:00:01]} 34. Qxd8+ {[%emt 0:00:01]} Kg7 {[%emt 0:00:01]} 35. Qd4+ {[%emt 0:00:25]} Rf6 {[%emt 0:00:04]} 36. e4 {[%emt 0:00:09][%cal Be2e4,Be4e5][%mdl 32]} Kg6 {[%emt 0:00:02]} 37. e5 {[%emt 0:00:04]} Re6 {[%emt 0:00:19]} 38. f4 {[%emt 0:00:07] Strongly threatening Qd7.} Kf5 {[%emt 0:00:11] Weighted Error Value: White=0.19 (very precise) /Black=0.22 (precise)} 1-0

[Event "Rapid Shavuot-A 2023"]
[Site "Ramat Gan"]
[Date "2023.05.25"]
[Round "2.7"]
[White "Dezent, Eyal"]
[Black "Mindlin, Alon"]
[Result "0-1"]
[ECO "A47"]
[WhiteElo "1773"]
[BlackElo "2435"]
[Annotator "TA"]
[PlyCount "54"]
[EventDate "2023.05.19"]
[EventType "swiss"]
[EventCountry "ISR"]
[SourceTitle "playchess.com"]
[Source "ChessBase"]
[SourceQuality "1"]
[TimeControl "900+5"]

{[%evp 18,54,14,17,30,30,41,10,12,10,20,22,39,16,24,-15,-20,-11,-20,-10,-10,0,0,0,68,57,85,1,1,2,0,0,104,113,347,-459,-459,-492,-493]} 1. d4 {[%emt 0:00:01]} Nf6 {[%emt 0:00:02]} 2. Bf4 {[%emt 0:00:03]} e6 {[%emt 0:00:02]} 3. e3 {[%emt 0:00:04]} b6 {[%emt 0:00:02]} 4. Nf3 {[%emt 0:00:08]} Bb7 {[%emt 0:00:03]} 5. Bd3 {[%emt 0:00:03]} Be7 {[%emt 0:00:16]} 6. h3 {[%emt 0:00:15]} c5 {[%emt 0:00:07]} 7. c3 {[%emt 0:00:03]} d6 {[%emt 0:00:03]} 8. Nbd2 {[%emt 0:00:10]} O-O {[%emt 0:00:09]} 9. O-O {[%emt 0:00:37]} Nbd7 {[%emt 0:01:49]} 10. Qe2 {[%emt 0:01:02]} Re8 {[%emt 0:00:37] A47: 1 d4 Nf6 2 Nf3 b6: Torre, London and Colle Systems.} 11. e4 {[%emt 0:01:06]} Nf8 {[%emt 0:00:16]} 12. Rad1 {[%emt 0:00:29] [#]} cxd4 $146 {[%emt 0:00:03] The position is equal.} ({Predecessor:} 12... Ng6 13. Bh2 Nh5 14. Qe3 Nf6 15. Rfe1 Bf8 16. Qe2 e5 17. d5 Nh5 18. Qe3 Nhf4 19. Bxf4 Nxf4 {1-0 De Araujo,F-Rodrigues,F (1905) Natal op-B 8th 2011 (2)}) 13. cxd4 {[%emt 0:00:07]} (13. Nxd4 $2 e5 14. Bb5 exf4 $19) 13... Ng6 {[%emt 0:00:02]} 14. Bh2 {[%emt 0:00:15]} Bf8 {[%emt 0:00:15]} 15. Bb5 {[%emt 0:00:43][%cal Bd3b5,Bb5a4,Ba4c2][%mdl 32]} Re7 {[%emt 0:00:49]} 16. e5 {[%emt 0:01:50]} dxe5 {[%emt 0:00:25]} 17. dxe5 {[%emt 0:00:36]} (17. Nxe5 {feels hotter.} Qxd4 18. Nc6 Qxb2 19. Nxe7+ Bxe7 20. Ne4) 17... Nd5 {[%emt 0:00:02]} 18. Ne4 {[%emt 0:00:40]} a6 {[%emt 0:00:08]} 19. Ba4 {[%emt 0:01:15]} b5 {[%emt 0:02:42]} 20. Bc2 {[%emt 0:00:08] And now Nfg5 would win.} Rd7 {[%emt 0:00:03]} ({Black should play} 20... Ndf4 $11 21. Bxf4 Nxf4) 21. Nfg5 $1 $14 {[%emt 0:00:37] Qh5 would be deadly.} h6 {[%emt 0:02:17] [#]} 22. Qh5 {[%emt 0:03:05]} Ndf4 {[%emt 0:01:01]} (22... hxg5 $2 23. Nxg5 $18) 23. Bxf4 {[%emt 0:00:38]} Nxf4 {[%emt 0:00:01]} 24. Qg4 {[%emt 0:00:01]} hxg5 {[%emt 0:01:46]} (24... Nd5 $1 $11 25. Rxd5 {[%mdl 64] Remove Defender, Decoy} Bxd5 26. Nf6+ {[%mdl 64] Double Attack} Kh8 27. Nxd7 Qxg5) 25. Nxg5 $16 {[%emt 0:00:07]} Ne2+ $2 {[%emt 0:00:06]} 26. Qxe2 $4 {[%emt 0:01:16][%mdl 8192]} (26. Kh2 $1 $18 {is the narrow road to win.} Bc5 27. Nxe6 (27. Qxe2 $2 {loses.} Qxg5 28. f4 Qe7 $19) 27... fxe6 28. Qxe6+ (28. Qxe2 $2 Rxd1 29. Bxd1 Qd5 $19) 28... Kh8 29. Rxd7) 26... Qxg5 $19 {[%emt 0:00:01][%csl Gb7][%cal Rg5g2]} 27. f4 {[%emt 0:00:06]} Qg3 {[%emt 0:00:08] Weighted Error Value: White=0.45/Black=0.33} 0-1

[Event "Rapid Shavuot-A 2023"]
[Site "Ramat Gan"]
[Date "2023.05.25"]
[Round "2.8"]
[White "Veinberg, Nimrod"]
[Black "Poleg, Dan"]
[Result "1-0"]
[ECO "D35"]
[WhiteElo "2410"]
[BlackElo "2193"]
[Annotator "TA"]
[PlyCount "89"]
[EventDate "2023.05.19"]
[EventType "swiss"]
[EventCountry "ISR"]
[SourceTitle "playchess.com"]
[Source "ChessBase"]
[SourceQuality "1"]
[TimeControl "900+5"]

{[%evp 18,89,28,30,38,33,70,41,63,24,34,33,37,27,39,0,2,4,45,-3,26,-18,-18,-60,-18,-9,-10,-64,20,18,25,14,16,12,47,31,40,35,84,77,224,223,234,227,228,208,234,201,285,290,290,290,290,290,287,282,439,395,399,404,397,362,644,645,577,631,620,575,599,515,468,456,735,702]} 1. d4 {[%emt 0:00:01]} Nf6 {[%emt 0:00:09]} 2. c4 {[%emt 0:00:02]} e6 {[%emt 0:00:02]} 3. Nc3 {[%emt 0:00:02]} d5 {[%emt 0:00:13]} 4. cxd5 {[%emt 0:00:03]} exd5 {[%emt 0:00:02]} 5. Bg5 {[%emt 0:00:02]} c6 {[%emt 0:00:09]} 6. e3 {[%emt 0:00:02]} Bf5 {[%emt 0:00:12]} 7. Qf3 {[%emt 0:00:07]} Bg6 {[%emt 0:00:27]} 8. Bxf6 {[%emt 0:00:02]} Qxf6 {[%emt 0:00:38]} 9. Qxf6 {[%emt 0:00:03]} gxf6 {[%emt 0:00:02]} 10. Nf3 {[%emt 0:00:16]} Bf5 {[%emt 0:01:33] D35: Queen's Gambit Declined: Exchange Variation.} 11. Nh4 {[%emt 0:00:15]} Be6 {[%emt 0:00:05]} 12. Bd3 {[%emt 0:00:21]} Nd7 {[%emt 0:00:07][%cal Bb8d7,Bd7b6,Bb6c4][%mdl 32] [#] White is slightly better.} 13. Kd2 $146 {[%emt 0:00:19] White is more active.} ({Predecessor:} 13. O-O-O Nb6 14. Rhe1 O-O-O 15. Kb1 Kb8 16. g3 Nc8 17. e4 dxe4 18. Bxe4 Nb6 19. Bf5 {1-0 Marin,M (2549)-Manea,A (2389) ROM-ch Amara 2007 (3)}) 13... a5 {[%emt 0:00:21]} 14. Rac1 {[%emt 0:01:11]} Nb6 {[%emt 0:00:12]} 15. Ne2 {[%emt 0:00:18]} a4 {[%emt 0:02:05]} 16. Ng3 {[%emt 0:00:07]} Nc4+ {[%emt 0:00:16]} 17. Kc2 {[%emt 0:01:04]} Kd7 {[%emt 0:00:36]} 18. Ra1 {[%emt 0:00:31]} (18. Nh5 $14 {is more appropriate.}) 18... b5 {[%emt 0:00:26]} 19. Rhe1 {[%emt 0:00:20]} Bb4 {[%emt 0:00:21]} 20. Rec1 {[%emt 0:00:04]} Rhc8 {[%emt 0:01:02] And now ...a3 would win.} (20... a3 $5 {[%cal Ra3b2]} 21. b3 Nb2 $11) 21. b3 {[%emt 0:00:42]} Nd6 {[%emt 0:01:49]} 22. Kb2 {[%emt 0:01:21]} (22. Ngf5 $11) 22... a3+ {[%emt 0:00:47]} ({Black should play} 22... c5 $1 $15 23. dxc5 Bxc5) 23. Kc2 $1 $11 {[%emt 0:00:35][%cal Oc2d1]} c5 {[%emt 0:00:07]} 24. dxc5 {[%emt 0:00:12]} Rxc5+ {[%emt 0:00:06]} 25. Kd1 {[%emt 0:00:12]} Bc3 {[%emt 0:00:19]} 26. Ne2 {[%emt 0:01:30]} Bxa1 {[%emt 0:01:14]} 27. Rxc5 {[%emt 0:00:02][%cal Oh4f3]} b4 {[%emt 0:00:02]} (27... d4 $14 28. Kc2 (28. Bxb5+ Nxb5 29. Rxb5 Kc6 $11) (28. Bxh7 $2 Rh8 $19) (28. exd4 $2 Bxb3+ 29. axb3 a2 $19) (28. Nxd4 $2 Bxd4 29. exd4 Bxb3+ 30. axb3 a2 $19) 28... dxe3 29. fxe3 b4) 28. Nf3 $16 {[%emt 0:01:44][%cal Of3d4]} (28. Bxh7 $2 Rh8 29. Bd3 Rxh4 $19) 28... Rc8 {[%emt 0:01:28] This costs Black the game.} (28... Ne4 $16 29. Bxe4 (29. Bb5+ Kd8 $15) 29... dxe4) 29. Rxc8 $18 {[%emt 0:00:03]} Kxc8 {[%emt 0:00:05]} 30. Nfd4 {[%emt 0:00:24] Repels Bf5} ({But not} 30. Bxh7 $6 f5 $16) 30... Bb2 {[%emt 0:01:52]} 31. Nc2 {[%emt 0:00:19]} ({Resist} 31. Bxh7 $6 f5 32. h4 Kd7) 31... Kd7 {[%emt 0:00:17]} 32. Nxb4 {[%emt 0:00:13]} Nb7 {[%emt 0:00:05]} (32... Ne4 $142 33. f3 Nf2+ 34. Kd2 Nxd3 35. Nxd3 Bf5) 33. Bxh7 {[%emt 0:00:28]} f5 {[%emt 0:00:09]} 34. Nd4 {[%emt 0:01:11]} Nd6 {[%emt 0:00:14]} 35. f3 {[%emt 0:01:19]} Bxd4 {[%emt 0:00:14]} 36. exd4 {[%emt 0:00:02][%mdl 4096] Endgame KBN-KBN} Nb5 {[%emt 0:00:03]} (36... Ke7 {keeps fighting.} 37. h3 Kf6) 37. Nc2 {[%emt 0:00:13]} Ke7 {[%emt 0:00:06]} 38. h3 {[%emt 0:00:03]} Kf6 {[%emt 0:00:10] [#]} 39. g4 $1 {[%emt 0:00:02]} Kg7 $2 {[%emt 0:00:06]} (39... Kg5 40. Kd2 f6) 40. Bxf5 {[%emt 0:00:15] White is clearly winning.} Bxf5 {[%emt 0:00:01]} 41. gxf5 {[%emt 0:00:02]} Kf6 {[%emt 0:00:01]} 42. Kd2 {[%emt 0:00:32]} Kxf5 {[%emt 0:00:02]} 43. Ke3 {[%emt 0:00:17]} Kg5 {[%emt 0:00:09]} 44. Nb4 {[%emt 0:00:04]} Nc3 {[%emt 0:00:02]} (44... Nc7 $142 45. h4+ Kxh4) 45. Kd3 {[%emt 0:00:10][%mdl 64] Deflection.   Weighted Error Value: White=0.13 (very precise) /Black=0.35} 1-0

[Event "Rapid Shavuot-A 2023"]
[Site "Ramat Gan"]
[Date "2023.05.25"]
[Round "2.9"]
[White "Aizenberg, Benny"]
[Black "Yaniv, Ori"]
[Result "1-0"]
[ECO "B94"]
[WhiteElo "2403"]
[BlackElo "2156"]
[Annotator "TA"]
[PlyCount "55"]
[EventDate "2023.05.19"]
[EventType "swiss"]
[EventCountry "ISR"]
[SourceTitle "playchess.com"]
[Source "ChessBase"]
[SourceQuality "1"]
[TimeControl "900+5"]

{[%evp 12,55,17,9,24,18,16,16,0,12,0,2,2,-37,-25,-29,38,22,-13,-12,30,-118,0,2,79,64,84,83,72,78,77,69,68,-253,-227,-208,-204,-231,119,119,216,241,416,400,370,368]} 1. e4 {[%emt 0:00:02]} c5 {[%emt 0:00:02]} 2. Nf3 {[%emt 0:00:02]} d6 {[%emt 0:00:02]} 3. d4 {[%emt 0:00:02]} cxd4 {[%emt 0:00:02]} 4. Nxd4 {[%emt 0:00:01]} Nf6 {[%emt 0:00:02]} 5. Nc3 {[%emt 0:00:02]} a6 {[%emt 0:00:01]} 6. Bg5 {[%emt 0:00:01]} Nbd7 {[%emt 0:00:02]} 7. Bc4 {[%emt 0:00:04]} Qb6 {[%emt 0:00:11] B94: Sicilian Najdorf: 6 Bg5 Nbd7.} 8. Bb3 {[%emt 0:00:07]} e6 {[%emt 0:00:18]} 9. Qd2 {[%emt 0:00:03]} Be7 {[%emt 0:00:29] The position is equal.} 10. O-O-O {[%emt 0:00:03]} Nc5 {[%emt 0:00:02]} 11. f3 {[%emt 0:00:16]} Qc7 {[%emt 0:00:24]} 12. h4 {[%emt 0:00:27][%cal Bh2h4,Bh4h5,Bh5h6,Bh6g7][%mdl 32]} b5 {[%emt 0:00:44]} 13. g4 {[%emt 0:01:17][%cal Bg2g4,Bg4g5,Bg5g6][%mdl 32]} Bb7 {[%emt 0:00:05]} (13... Bd7 $11) 14. Be3 {[%emt 0:00:11]} O-O {[%emt 0:01:40]} 15. h5 {[%emt 0:00:18]} b4 {[%emt 0:02:15]} 16. Nce2 {[%emt 0:00:04] [#]} (16. Na4 $1 $11) 16... Nxb3+ $146 {[%emt 0:00:34]} ({Black should try} 16... a5 $1 $17 {[%cal Ra5a4] White must now prevent ...a4.} 17. Kb1 a4) ({Predecessor:} 16... a5 17. g5 Nfxe4 18. fxe4 Nxe4 19. Qe1 a4 20. Bxe6 fxe6 21. Qxb4 Bd5 22. Nxe6 Bxe6 23. Qxe4 Bxa2 {1-0 Rachez,P (1860)-Laurent,D (2142) Montigny le Bretonneux Noel op 06th 2003 (2)}) 17. axb3 $11 {[%emt 0:00:06]} d5 {[%emt 0:00:54] [#]} (17... a5 $11) 18. g5 $1 $16 {[%emt 0:00:14]} Nd7 {[%emt 0:00:03][%cal Bf6d7,Bd7c5,Bc5e4][%mdl 32] [#]} 19. g6 $1 {[%emt 0:00:12]} Nc5 {[%emt 0:00:56]} 20. h6 {[%emt 0:00:58] Intending gxh7+ and mate.} (20. Qxb4 $2 Nd3+ 21. Rxd3 Bxb4 $19) 20... fxg6 {[%emt 0:00:10][%cal Of8f3]} 21. hxg7 {[%emt 0:00:03]} (21. Qxb4 $2 Nd3+ 22. Rxd3 Bxb4 $19) 21... Rxf3 {[%emt 0:00:11][%mdl 64] Deflection} 22. Kb1 $2 {[%emt 0:01:36][%mdl 8192]} (22. exd5 $2 Ne4 23. Nxf3 (23. Qd3 $2 Rxe3 24. Qxe3 Bg5 $19) 23... Nxd2 24. Rxd2 Bxd5 $19) (22. Nf4 $1 $14 {was forced to keep a grip.} Rxe3 23. Qxe3) 22... Nxe4 $19 {[%emt 0:00:30]} 23. Qc1 {[%emt 0:00:01]} Rf6 {[%emt 0:01:07] Threatens to win with ...e5.} 24. Bg5 {[%emt 0:00:28] [#] Dodges e5} e5 $2 {[%emt 0:01:22]} 25. Bxf6 $16 {[%emt 0:00:11]} Bxf6 {[%emt 0:00:08]} (25... Nxf6 $16 26. Qh6 (26. Ne6 Qd6 $17) 26... exd4 27. Nxd4 Bc8) 26. Ne6 $18 {[%emt 0:00:10] Qh6 is the strong threat.} Qe7 $2 {[%emt 0:00:48] [#]} (26... Qxg7 27. Nxg7 Bg5) 27. Qh6 $1 {[%emt 0:00:03]} Kf7 {[%emt 0:00:10] [#]} 28. Qxh7 $1 {[%emt 0:00:32] Ingenious play by Aizenberg!   Weighted Error Value: White=0.31/Black=0.58} 1-0

[Event "Rapid Shavuot-A 2023"]
[Site "Ramat Gan"]
[Date "2023.05.25"]
[Round "2.10"]
[White "Rozen, Eytan"]
[Black "Kinberg, Ofer"]
[Result "1-0"]
[ECO "D00"]
[WhiteElo "2417"]
[BlackElo "1918"]
[Annotator "TA"]
[PlyCount "25"]
[EventDate "2023.05.19"]
[EventType "swiss"]
[EventCountry "ISR"]
[SourceTitle "playchess.com"]
[Source "ChessBase"]
[SourceQuality "1"]
[TimeControl "900+5"]

{[%evp 9,25,0,10,10,13,0,33,36,47,34,59,-19,206,204,205,93,104,106]} 1. d4 {[%emt 0:00:04]} d5 {[%emt 0:00:00]} 2. Nc3 {[%emt 0:00:03]} Nf6 {[%emt 0:00:02]} 3. Bf4 {[%emt 0:00:01]} c6 {[%emt 0:00:22]} 4. e3 {[%emt 0:00:03]} e6 {[%emt 0:00:07]} 5. Nf3 {[%emt 0:00:03]} Bd6 {[%emt 0:00:10]} 6. Bd3 {[%emt 0:00:03] D00: 1 d4 d5: Unusual lines.} O-O {[%emt 0:00:03]} 7. Ne5 {[%emt 0:00:05]} Qc7 {[%emt 0:00:15]} 8. Qf3 {[%emt 0:00:23] White is slightly better.} b6 {[%emt 0:00:09] [#]} 9. Qg3 $146 {[%emt 0:00:36] Threatens to win with Ng4.} ({Predecessor:} 9. Qh3 Ba6 10. O-O-O Bxd3 11. Nxd3 Bxf4 12. Nxf4 c5 13. Qg3 {0-1 Jobava,B (2603)-Materia,M (2287) C'Chartres Blitz op April 2021 (3)}) 9... Ba6 {[%emt 0:02:18]} 10. Nf3 {[%emt 0:01:33]} ({Much worse is} 10. Bh6 Ne8 11. Bf4 Bxd3 12. Nxd3 Bxf4 13. Nxf4 (13. exf4 Nd6 $15) (13. Qxf4 Qxf4 14. Nxf4 c5 $11) 13... c5 $11) (10. Ng4 $14 Bxf4 11. Nxf6+ Kh8 12. exf4 (12. Qxf4 Qxf4 13. exf4 gxf6 $11) 12... Bxd3 13. Nfxd5 (13. Nh5 Bg6 $17) 13... cxd5 14. Qxd3) 10... Nh5 $2 {[%emt 0:12:29] [#]} (10... Bxf4 $11 {and Black is okay.} 11. Qxf4 Qxf4 12. exf4 Bxd3 13. cxd3 c5) 11. Bxd6 {[%emt 0:13:06]} Nxg3 12. Bxc7 (12. Bxh7+ $18 {and the rest is easy.} Kh8 13. Bxc7 Nxh1 14. Bd3) 12... Nxh1 $16 {[%emt 0:00:10]} 13. Ke2 {Weighted Error Value: White=0.42/Black=0.49} 1-0